Cogmind - Beta 17.1 @@@ ROGUE MODE // 2026.09.06 @ 02:23:44 Player: 4R-ZE3 Result: Destroyed by 6W-H26(R) with Subdweller Machine Gun Performance ------------- Evolutions (0) 0 Regions Visited (2) 400 Robots Destroyed (26) 130 Value Destroyed (700) 700 Prototype IDs (14) 280 Alien Tech Used (0) 0 Bonus (-111) -111 TOTAL SCORE: 1399 Bonus ------- Friendly Fire -111 Cogmind --------- Core Integrity 0/250 Matter 47/300 Energy 204/250 System Corruption 7% Temperature Cool (0) Movement Rolling (105) Ox1 Location -10/Subcaves Parts ------- > --- POWER (1) -------- Ion Engine > --- PROPULSION (2) --- Wheel Compact Wheel > --- UTILITY (2) ------ Disposable Heat Sink High-capacity Storage Unit > --- WEAPON (2) ------- EM Pulse Gun Subdweller Laser > --- INVENTORY (20) --- Ion Engine Flightbrick Heat Sink Small Storage Unit Structural Scanner Utility Shielding Small Laser Assault Rifle Assault Rifle Assault Rifle Light Assault Rifle Light Assault Rifle Grenade Launcher Peak State ------------ > --- POWER ------------ Ion Engine > --- PROPULSION ------- Wheel Compact Wheel > --- UTILITY ---------- Disposable Heat Sink High-capacity Storage Unit > --- WEAPON ----------- EM Pulse Gun Subdweller Laser > --- INVENTORY -------- Ion Engine Flightbrick Heat Sink Small Storage Unit Structural Scanner Utility Shielding Small Laser Assault Rifle Assault Rifle Assault Rifle Light Assault Rifle Light Assault Rifle Grenade Launcher [Rating: 13] Favorites ----------- Power Ion Engine Engine Ion Engine Propulsion Light Treads Treads Light Treads Wheel Wheel Utility High-capacity Storage Unit Device Disposable Heat Sink Storage High-capacity Storage Unit Protection Light Armor Plating Weapon EM Pulse Gun Energy Gun EM Pulse Gun Ballistic Gun Assault Rifle Ballistic Cannon Light Cannon Launcher Grenade Launcher Build | -11 -10 -10 ------- Run | Yrd Mat Sub Slots Evolved . | . . . Power . | . . . Propulsion . | . . . Utility . | . . . Weapon . | . . . Parts Attached 21 | 6 6 9 Power 2 | 1 . 1 Engine 2 | 1 . 1 Core . | . . . Reactor . | . . . Propulsion 5 | 2 . 3 Treads 3 | 2 . 1 Leg . | . . . Wheel 2 | . . 2 Hover . | . . . Flight . | . . . Utility 6 | 1 3 2 Device 2 | . 1 1 Storage 2 | 1 1 . Processor . | . . . Hackware . | . . . Protection 2 | . 1 1 Artifact . | . . . Weapon 8 | 2 3 3 Energy Gun 4 | 1 1 2 Energy Cannon . | . . . Ballistic Gun 2 | 1 . 1 Ballistic Cannon 1 | . 1 . Launcher 1 | . 1 . Special Weapon . | . . . Impact Weapon . | . . . Slashing Weapon . | . . . Piercing Weapon . | . . . Special Melee Weapon . | . . . Unidentified Prototypes . | . . . Corrupted Parts 1 | . . 1 System Corruption 7 | . . 7 Parts Lost 10 | . 2 8 Power 1 | . . 1 Propulsion 3 | . . 3 Utility 2 | . . 2 Weapon 4 | . 2 2 Highest Loss Streak 4 | . 1 4 To Critical Strikes 1 | . 1 . Average Backups 11 | 2 9 14 Power 1 | . 1 1 Propulsion 1 | . 2 1 Utility 3 | . 2 4 Weapon 5 | . 3 7 Tool/Special . | . . . Unused Backups 9 | . . 9 Power 1 | . . 1 Propulsion 1 | . . 1 Utility 2 | . . 2 Weapon 5 | . . 5 Tool/Special . | . . . Average Slot Usage (%) 92 | . 98 85 Engine 11 | . 14 9 Treads 21 | . 28 14 Wheel 3 | . . 6 Device 3 | . 2 5 Storage 14 | . 14 14 Protection 8 | . 10 7 Energy Gun 10 | . 8 12 Ballistic Gun 7 | . 9 6 Ballistic Cannon 6 | . 5 7 Launcher 3 | . 4 1 Peak Build Rating 13 | 6 8 13 Average Rating 7 | 4 7 8 On Entrance 4 | . 6 8 Avg Prop Armor Cover (%) . | . . . Naked Turns . | . . . Heaviest Build 54 | 14 54 54 Greatest Support 40 | 40 40 40 Greatest Overweight (x) 5 | 4 1 5 Average Overweight (x) 1 | . . 3 Largest Inventory Capacity 20 | 8 20 20 Average Capacity 16 | 7 13 20 Most Carried 17 | 4 16 17 Average Carried 11 | 2 9 15 Final Capacity 20 | 8 20 20 Final Carried 16 | 4 16 16 Class Distribution -------------------- 100% | Mutant Dominant Class ---------------- Mutant | -10/Materials Mutant | -10/Subcaves Resources | -11 -10 -10 ----------- Run | Yrd Mat Sub Matter Collected 629 | 238 254 137 Remotely . | . . . Salvage Created 815 | . 586 229 Parts 54 | . 38 16 Haulers Intercepted 2 | . 2 . Recyclers Shooed 2 | . 2 . Parts Field Recycled . | . . . Retrieved Matter . | . . . Parts Self-Destructed 9 | . . 9 Prevented . | . . . Parts Restored . | . . . Kills | -11 -10 -10 ------- Run | Yrd Mat Sub Combat Hostiles Destroyed 22 | . 15 7 Guns 9 | . 7 2 AOE 13 | . 8 5 Classes Destroyed 7 | . 3 4 Hauler 2 | . 2 . Turret 2 | . . 2 Swarmer 8 | . 5 3 Grunt 10 | . 10 . Artisan 2 | . . 2 Subdweller 4 | . . 4 Scientist 1 | . . 1 Best Kill Streak 6 | . 6 3 Combat Bots Only 6 | . 6 3 Max Kills in Single Turn 2 | . 2 2 Gunslinging . | . . . Exploded 2 | . 2 2 Melee . | . . . Uniques/NPCs Destroyed . | . . . Combat | -11 -10 -10 -------- Run | Yrd Mat Sub Hostile Shots Fired 181 | . 69 112 Missed 69 | . 24 45 Hits 112 | . 45 67 Projectile 112 | . 45 67 Critical Strikes 2 | . 1 1 Damage Taken 1432 | . 570 862 Core 250 | . 101 149 Absorbed by Shields . | . . . Core Remaining (%) 100 | 100 . . Volleys Fired 115 | . 48 67 Largest 2 | . 2 2 Hottest 100 | . 60 100 Shots Fired 180 | . 89 91 Gun 136 | . 82 54 Cannon 23 | . 2 21 Launcher 21 | . 5 16 Special . | . . . Kinetic 69 | . 43 26 Thermal 30 | . . 30 Explosive 21 | . 5 16 Electromagnetic 60 | . 41 19 Robot Hit Streak 26 | . 7 26 Robot Miss Streak 4 | . 4 2 Penetration Max . | . . . Secondary Targets . | . . . Shots Hit Robots 100 | . 54 46 Core Hits 52 | . 31 21 Critical Kills . | . . . Critical Parts Destroyed . | . . . Critical Strikes 1 | . . 1 Corrupt 1 | . . 1 Melee Attacks . | . . . Impact . | . . . Slashing . | . . . Piercing . | . . . Sneak Attacks . | . . . Combat Hostiles . | . . . Follow-up Attacks . | . . . Damage Inflicted 2094 | . 1107 987 Guns 1099 | . 649 450 Cannons 126 | . 35 91 Explosions 862 | . 423 439 Melee . | . . . Ramming 7 | . . 7 Kinetic 473 | . 331 142 Thermal 251 | . 72 179 Explosive 790 | . 351 439 Electromagnetic 573 | . 353 220 Impact . | . . . Slashing . | . . . Piercing . | . . . Highest Corruption 7 | . . 7 Average Corruption 7 | . . 7 Corruption Purged . | . . . Corruption Blocked . | . . . Effects 12 | . . 12 Message Errors 4 | . . 4 Matter Fused 4 | . . 4 Heat Flow Errors 1 | . . 1 Energy Discharges 2 | . . 2 Data Loss (minor) 1 | . . 1 Overload Shots . | . . . Overflow Damage 62 | . 37 25 Projectiles . | . . . Explosions 62 | . 37 25 Melee . | . . . Knockbacks 1 | . . 1 Impact . | . . . Kinetic 1 | . . 1 Secondary . | . . . Self-Inflicted Damage 130 | . 91 39 Shots 4 | . 3 1 Rammed 2 | . . 2 Targets Rammed 2 | . . 2 Kicked . | . . . Crushed . | . . . Highest Temperature 186 | . 87 186 Average Temperature 36 | . 34 106 Received Heat Transfer 441 | . 207 234 Siege Activations . | . . . Martial Activations . | . . . Shielding Activations . | . . . Robots Disrupted . | . . . Combat Hostiles . | . . . Robots Corrupted 1 | . 1 . Combat Hostiles . | . . . Parts Fried 2 | . 2 . Impact Corruptions . | . . . Robots Melted . | . . . Combat Hostiles . | . . . Parts Melted . | . . . Heat Transferred 375 | . 50 325 Parts Sabotaged . | . . . Parts Stolen . | . . . Parts Stripped . | . . . Power Chain Reactions 2 | . 2 . Alert | -11 -10 -10 ------- Run | Yrd Mat Sub Maximum Alert Level 1 | . 1 . Low Security (%) 74 | 100 72 . Level 1 25 | . 27 . Level 2 . | . . . Level 3 . | . . . Level 4 . | . . . Level 5 . | . . . High Security . | . . . Max Security . | . . . Peak Influence 273 | . 273 . Initial . | . . . Average 123 | . 132 . Influence Increases 837 | . 527 310 Destroy 0b10 Robot/C 400 | . 300 100 Destroy 0b10 Robot/NC 10 | . 10 . Destroy Leader 64 | . 64 . Successful Hack 5 | . 5 . Select Force Hacks 30 | . 30 . Disable Machine 45 | . 45 . Destroy Structure 43 | . 43 . Lose Combat Pursuer 240 | . 30 210 Influence Decreases 837 | . 345 492 Entered New Map 88 | . . 88 Time Decay 649 | . 325 324 Lost Part 100 | . 20 80 Squads Dispatched 4 | . 4 . Investigation 2 | . 2 . Extermination . | . . . Reinforcement 2 | . 2 . Assault . | . . . Garrison . | . . . Intercept . | . . . Searches Triggered . | . . . Construction Impeded . | . . . Haulers Reinforced . | . . . Active Scanning Responses . | . . . Cargo Convoy Interrupts . | . . . Stealth | -11 -10 -10 --------- Run | Yrd Mat Sub Distress Signals 4 | . 4 . Communications Jammed . | . . . Distress Signals . | . . . Times Spotted 40 | . 25 15 Peak Tracking Total 6 | . 6 5 Tactical Retreats 7 | . 2 5 Traps | -11 -10 -10 ------- Run | Yrd Mat Sub Traps Triggered 5 | . 1 4 Indirectly . | . . . Trap Hack Attempts . | . . . Triggered . | . . . Disarmed . | . . . Reprogrammed . | . . . Reused . | . . . Traps Extracted . | . . . Installed . | . . . Triggered . | . . . Machines | -11 -10 -10 ---------- Run | Yrd Mat Sub Machines Disabled 7 | . 3 4 Max in Single Turn 1 | . 1 1 Machines Repaired . | . . . Machines Dismantled . | . . . Machines Sabotaged . | . . . Overloaded Fab Kills . | . . . Hacking | -11 -10 -10 --------- Run | Yrd Mat Sub Machines Accessed 7 | . 6 1 Terminals 5 | . 5 . Fabricators . | . . . Repair Stations . | . . . Recycling Units 1 | . 1 . Scanalyzers . | . . . Garrison Access . | . . . Total Hacks 12 | . 11 1 Successful 4 | . 3 1 Failed 8 | . 8 . Catastrophic 1 | . 1 . Database Lockouts . | . . . Manual 11 | . 11 . Terminals 10 | . 10 . Fabricators . | . . . Repair Stations . | . . . Recycling Units 1 | . 1 . Scanalyzers . | . . . Garrison Access . | . . . Terminal Hacks 2 | . 1 1 Robot Analysis 1 | . 1 . Proto ID Catalog 1 | . . 1 Fabricator Hacks . | . . . Repair Station Hacks . | . . . Recycling Unit Hacks . | . . . Scanalyzer . | . . . Garrison Access Hacks . | . . . Unauthorized Hacks 2 | . 2 . Terminals 1 | . 1 . Botnet 1 | . 1 . Fabricators . | . . . Repair Stations . | . . . Recycling Units 1 | . 1 . Tunnel 1 | . 1 . Scanalyzers . | . . . Garrison Access . | . . . Data Cores Recovered . | . . . Used . | . . . Hacking Detections 5 | . 5 . Full Trace Events . | . . . Feedback Events . | . . . Feedback Blocked . | . . . Robot Schematics Acquired . | . . . Robots Built . | . . . Authchips . | . . . Time . | . . . Total Robot Build Rating . | . . . Part Schematics Acquired . | . . . Parts Built . | . . . Authchips . | . . . Time . | . . . Total Part Build Rating . | . . . Part Studies Acquired . | . . . Parts Repaired . | . . . Time . | . . . Parts Recycled . | . . . Recycled Matter . | . . . Retrieved Matter . | . . . Retrieved Components . | . . . Parts Scanalyzed . | . . . Part Schematics Acquired . | . . . Parts Damaged . | . . . Bothacking | -11 -10 -10 ------------ Run | Yrd Mat Sub Used RIF Installer . | . . . Robots Hacked . | . . . Non-combat . | . . . Combat . | . . . Robot Hacks Applied . | . . . Relay Couplers Released . | . . . Fabnet Peak Effective % . | . . . Robots Rewired . | . . . Allies Hacked . | . . . Hacks Repelled . | . . . Allies | -11 -10 -10 -------- Run | Yrd Mat Sub Total Allies . | . . . Largest Group . | . . . Highest-Rated Group . | . . . Highest-Rated Ally . | . . . Total Orders . | . . . Ally Attacks . | . . . Total Damage . | . . . Kills . | . . . Allies Corrupted . | . . . Allies Melted . | . . . Intel | -11 -10 -10 ------- Run | Yrd Mat Sub Active Infowar (turns) 188 | . 188 . Structural 188 | . 188 . Robot Analysis Total 1 | . 1 . Derelict Logs Recovered 1 | . . 1 Drone Launches . | . . . Drone Recoveries . | . . . Exploration | -11 -10 -10 ------------- Run | Yrd Mat Sub Turns Passed 2282 | 83 1090 1109 Spaces Moved 931 | 44 410 477 Core 11 | 11 . . Treads 653 | 33 410 210 Legs . | . . . Wheels 267 | . . 267 Hover . | . . . Flight . | . . . Fastest Speed 50 | 50 160 105 Average Speed 188 | 162 185 194 Slowest Speed 320 | 250 240 320 Overloaded Moves . | . . . Propulsion Burnouts . | . . . Robots Hopped . | . . . Potential Cave-ins . | . . . Cave-ins Triggered . | . . . Exploration Rate (%) 34 | 3 77 24 Regions Visited 2 Branch Regions 1 Pre-discovered Areas 2 | . 1 1 Known Exits Taken . | . . . Unknown Exits Taken 2 | 1 1 . Scrap Searched . | . . . Spaces Dug . | . . . Terrain Destroyed 114 | . 41 73 Melee . | . . . Projectile . | . . . AOE 114 | . 41 73 Terrain Rammed . | . . . Walls Destroyed . | . . . Machines Disabled . | . . . Actions | -11 -10 -10 --------- Run | Yrd Mat Sub Total 1264 | 53 646 565 Wait 171 | . 166 5 Move 929 | 43 409 477 Hop . | . . . Pick Up 20 | 4 13 3 Fast Attach 9 | 6 1 2 Attach 9 | . 2 7 Detach 1 | . . 1 Swap 8 | . 7 1 Drop . | . . . Fire 115 | . 48 67 Melee . | . . . Ram . | . . . Kick . | . . . Crush 2 | . . 2 Escape Stasis . | . . . Rewire . | . . . Trap . | . . . Miscellaneous . | . . . Route ------- -11/Scrapyard -10/Materials (discovered 3 exits: [*Mat x2] / *Sub) -10/Subcaves (discovered 2 exits: [*Mat] / [*Rec]) History --------- Turn | Location | Event 16 | -11/Scrapyard | Discovered new exit (range 16) 84 | -11/Scrapyard | Entered Materials 312 | -10/Materials | Build established: Mutant 732 | -10/Materials | Discovered new exit (range 15) 951 | -10/Materials | Discovered new exit (range 9) 1159 | -10/Materials | Discovered new exit (range 4) 1174 | -10/Materials | Entered Subcaves 1174 | -10/Subcaves | Discovered new exit (range 11) 1175 | -10/Subcaves | Approached by a straggling Scientist 1455 | -10/Subcaves | Core integrity fell below 50% 1828 | -10/Subcaves | Lost 4 parts (1n1u2w) 1850 | -10/Subcaves | Core integrity fell below 20% 1903 | -10/Subcaves | Learned location of Zion (-6) 2042 | -10/Subcaves | Visited 4L-MR0's lab 2059 | -10/Subcaves | Found Flightbrick 2259 | -10/Subcaves | Discovered new exit (range 13) 2282 | -10/Subcaves | Ambushed by angry Subdweller bent on revenge 2283 | -10/Subcaves | Destroyed by 6W-H26(R) with Subdweller Machine Gun Last Messages --------------- 02074_ Acquired 16 matter. 02082_ FBI,5SBL,,&9>DRPMXZCYCWB4P##P%V 02100_ System corrupted: Energy discharge (-82). 02118_ System corrupted: Matter fused (-9). 02138_ System corrupted: Matter fused (-6). 02160_ System corrupted: Matter fused (-9). 02168_ Triggered Piercing Trap. 02168_ Spikes shoot up from the floor. 02168_ Critical hit (Impale). 02188_ System corrupted: Matter fused (-10). 02220_ EI18G MINEZ4VML# 02259_ EXIT=FOUND 02265_ CO1JYW7,J NV1PXCO%DIYDD5S|CAFQJP BUS 02281_ NG-OL5(u) cries out in pain. 02281_ NG-OL5(u) destroyed. 02282_ 6W-H26(R) angrily emerges from the Twisted Machinery. 02282_ 6W-H26(R): "SUBMAD!" 02282_ Subatomizers dissect the Corrupted Wheel. Map ----- +----------------------------------------------------+ | | | | | | | | | ?????????????????????????????????????????????????? | | ?????????????????????????????????????????????????? | | ?????????????????????????????????????????????????? | | ?????????????????????????????????????????????????? | | ?????????????????????????????????????????????????? | | ?????????????????????????????????????????????????? | | ?????????????????????????????????????????????????? | | ?????????????????????????????????????????????????? | | ?????????????????????????????????????????????????? | | ?????????????????????????????????????????????????? | | ?????????????????????????????????????????????????? | | ?????????????????????????????????????????????????? | | ?????????????????????????????????????????????????? | | ?????????????????????????????????????????????????? | | ##????????????????????????##?????????????????????? | | ##########?????????????## ####??????????????????? | | ## ##????????????# #??????????????????? | | "##??#######??# #???????????????????? | | # " #??# #### #???????????????????? | | # ### " #??# ##""" "##??????????????????? | | # ###?## " ###?# "" " ###????????????????? | | ????# " ### R@ "< #????????????????? | | ??##" %| " #????????????? | | ######?# " = ##### " ???????????? | | ??????# " ##???###### """" " ???????????? | | #???### "##### #??????????# ????????????? | | ##### # ##???###???????????# ##"???????????????? | | #???????????????????# #?????????????????? | | " "#????????????????????##?????????????????? | | ""# #""#???????????????????????????????????????? | | #########???????????????????????????????????????? | | ##???????????????????????????????????????????????? | | #????????????????????????????????????????????????? | | ?????????????????????????????????????????????????? | | ?????????????????????????????????????????????????? | | ?????????????????????????????????????????????????? | | ?????????????????????????????????????????????????? | | ?????????????????????????????????????????????????? | | ##???????????????????????????????????????????????? | | #???????????????????????????????????????????????? | | ##???????????????????????????????????????????????? | | #????????????????????????????????????????????????? | | #????????????????????????????????????????????????? | | ##???????????????????????????????????????????????? | | #???????????????????????????????????????????????? | | #?????????###???????????????????????????????????? | +----------------------------------------------------+ Best States ------------- Heat Dissipation 25 Coolant Potential 50 Energy Generation 10 Energy Capacity 250 Matter Stores 300 Matter Capacity 300 Sight Range 16 Terrain Scan Density 10 Armor Coverage 150 Evasion (%) 40 Recoil Reduction 2 Item Schematics ----------------- None Robot Schematics ------------------ None Fabricated ------------ Nothing Repaired ---------- Nothing Studied --------- None Alien Tech Used ----------------- None Achievements -------------- None Challenges ------------ None Game ------ Seed MolecularFactoryStripper Manual? 0 Play Time 00:15:30 Cumulative 338.4 hours Start 2026.09.06 @ 02:10:51 End 2026.09.06 @ 02:23:44 Sessions 1 Manual Loads 0 Difficulty Rogue Special Mode None Game No. 314 Rogue 260 Adventurer 54 Explorer 0 Win Type - Total 16 Types 11/1/1/1/0/0/0/1/0/1 Lore% 80 Gallery% 69 Achievement% 64 Wizard Run 0 Options --------- Layout 1 ASCII 0 Keyboard 0 Movement Mouse Keybinds 1 Fullscreen 2 Font 32/Tamsyn Map View 50x35 Zoom Use 0% Tactical HUD 1 Map Filters NONE Filters NONE Steam 1 RUN: 452f2cf7-93d1-4ad6-a933-8e21f92cdb57